[Event "Masterklassen 2025"]
[Site "Uppsala, Sweden"]
[Date "2025.06.30"]
[Round "3.9"]
[White "Lundberg, David"]
[Black "Sundin, Emanuel"]
[Result "1/2-1/2"]
[TimeControl "90 min for 40 move + 30 min with an increment of 30 sec starting move 1"]
[WhiteFideId "1707051"]
[BlackFideId "1719173"]
[WhiteElo "2193"]
[BlackElo "2117"]

1. e4 {[%clk 01:30:57]} {[%emt 00:00:02]} e5 {[%clk 01:30:43]} {[%emt
00:00:18]} 2. Nf3 {[%clk 01:31:09]} {[%emt 00:00:18]} Nc6 {[%clk 01:31:06]}
{[%emt 00:00:07]} 3. d4 {[%clk 01:31:32]} {[%emt 00:00:07]} exd4 {[%clk
01:31:28]} {[%emt 00:00:08]} 4. Nxd4 {[%clk 01:31:56]} {[%emt 00:00:05]} Bc5
{[%clk 01:31:10]} {[%emt 00:00:49]} 5. Nb3 {[%clk 01:29:06]} {[%emt 00:03:20]}
Bb6 {[%clk 01:28:10]} {[%emt 00:03:30]} 6. Nc3 {[%clk 01:28:42]} {[%emt
00:00:54]} Nge7 {[%clk 01:27:27]} {[%emt 00:01:13]} 7. Qe2 {[%clk 01:27:04]}
{[%emt 00:02:08]} O-O {[%clk 01:27:13]} {[%emt 00:00:44]} 8. Be3 {[%clk
01:25:30]} {[%emt 00:02:03]} f5 {[%clk 01:25:22]} {[%emt 00:02:22]} 9. O-O-O
{[%clk 01:16:37]} {[%emt 00:09:24]} fxe4 {[%clk 01:20:32]} {[%emt 00:05:20]} 10.
Bxb6 {[%clk 01:13:54]} {[%emt 00:03:13]} axb6 {[%clk 01:20:50]} {[%emt
00:00:11]} 11. Qxe4 {[%clk 01:08:16]} {[%emt 00:06:07]} d6 {[%clk 01:19:48]}
{[%emt 00:01:32]} 12. h4 {[%clk 00:58:25]} {[%emt 00:10:21]} Bf5 {[%clk
01:15:08]} {[%emt 00:05:11]} 13. Qc4+ {[%clk 00:49:37]} {[%emt 00:09:17]} Kh8
{[%clk 01:14:08]} {[%emt 00:01:30]} 14. f4 {[%clk 00:49:37]} {[%emt 00:00:29]}
Qc8 {[%clk 01:04:54]} {[%emt 00:09:45]} 15. Bd3 {[%clk 00:36:42]} {[%emt
00:13:24]} Na5 {[%clk 00:48:58]} {[%emt 00:16:27]} 16. Nxa5 {[%clk 00:33:45]}
{[%emt 00:03:27]} Rxa5 {[%clk 00:48:58]} {[%emt 00:00:30]} 17. Bxf5 {[%clk
00:31:03]} {[%emt 00:03:11]} Nxf5 {[%clk 00:42:24]} {[%emt 00:07:05]} 18. Qd3
{[%clk 00:28:47]} {[%emt 00:02:44]} Nh6 {[%clk 00:40:48]} {[%emt 00:02:09]} 19.
g3 {[%clk 00:27:19]} {[%emt 00:01:57]} Ng4 {[%clk 00:38:34]} {[%emt 00:02:44]}
20. Qf3 {[%clk 00:25:57]} {[%emt 00:01:51]} b5 {[%clk 00:26:13]} {[%emt
00:12:51]} 21. a3 {[%clk 00:18:54]} {[%emt 00:07:34]} Ne5 {[%clk 00:22:44]}
{[%emt 00:03:59]} 22. Qe2 {[%clk 00:18:22]} {[%emt 00:01:02]} b4 {[%clk
00:14:58]} {[%emt 00:08:16]} 23. axb4 {[%clk 00:17:43]} {[%emt 00:01:08]} Ra1+
{[%clk 00:15:22]} {[%emt 00:00:07]} 24. Kd2 {[%clk 00:17:59]} {[%emt 00:00:13]}
Rxd1+ {[%clk 00:15:42]} {[%emt 00:00:11]} 25. Rxd1 {[%clk 00:17:54]} {[%emt
00:00:34]} Nc6 {[%clk 00:11:31]} {[%emt 00:04:42]} 26. b5 {[%clk 00:15:59]}
{[%emt 00:02:25]} Nd4 {[%clk 00:10:02]} {[%emt 00:01:59]} 27. Qd3 {[%clk
00:10:13]} {[%emt 00:06:16]} Nf5 {[%clk 00:10:18]} {[%emt 00:00:13]} 28. Re1
{[%clk 00:10:03]} {[%emt 00:00:40]} c6 {[%clk 00:09:56]} {[%emt 00:00:53]} 29.
Kc1 {[%clk 00:06:40]} {[%emt 00:03:53]} d5 {[%clk 00:10:03]} {[%emt 00:00:23]}
30. Re5 {[%clk 00:06:55]} {[%emt 00:00:15]} Nd6 {[%clk 00:08:06]} {[%emt
00:02:27]} 31. b3 {[%clk 00:05:55]} {[%emt 00:01:30]} h6 {[%clk 00:06:03]}
{[%emt 00:02:33]} 32. h5 {[%clk 00:04:45]} {[%emt 00:01:40]} Qd7 {[%clk
00:04:24]} {[%emt 00:02:09]} 33. bxc6 {[%clk 00:04:10]} {[%emt 00:01:05]} bxc6
{[%clk 00:04:44]} {[%emt 00:00:11]} 34. Kb2 {[%clk 00:04:14]} {[%emt 00:00:23]}
Rb8 {[%clk 00:04:33]} {[%emt 00:00:42]} 35. Kc1 {[%clk 00:04:15]} {[%emt
00:00:29]} Qa7 {[%clk 00:03:38]} {[%emt 00:01:25]} 36. Re6 {[%clk 00:02:39]}
{[%emt 00:02:06]} Qg1+ {[%clk 00:02:46]} {[%emt 00:01:23]} 37. Nd1 {[%clk
00:01:50]} {[%emt 00:01:19]} Qc5 {[%clk 00:02:20]} {[%emt 00:00:56]} 38. Qc3
{[%clk 00:01:39]} {[%emt 00:00:41]} Qa7 {[%clk 00:01:05]} {[%emt 00:01:45]} 39.
Rxh6+ {[%clk 00:01:42]} {[%emt 00:00:27]} Kg8 {[%clk 00:01:29]} {[%emt
00:00:06]} 40. Rxd6 {[%clk 00:02:00]} {[%emt 00:00:12]} Qa3+ {[%clk 00:01:42]}
{[%emt 00:00:16]} 41. Kb1 {[%clk 00:00:33]} {[%emt 00:01:57]} Qxd6 {[%clk
00:01:37]} {[%emt 00:00:35]} 42. Ne3 {[%clk 00:27:27]} {[%emt 00:03:36]} Qf6
{[%clk 00:23:42]} {[%emt 00:08:26]} 43. Qd3 {[%clk 00:24:57]} {[%emt 00:03:00]}
Ra8 {[%clk 00:23:32]} {[%emt 00:00:40]} 1/2-1/2

[Event "Masterklassen 2025"]
[Site "Uppsala, Sweden"]
[Date "2025.06.30"]
[Round "3.10"]
[White "Eriksson, Jorgen"]
[Black "Lind, Jan-Olov"]
[Result "1-0"]
[TimeControl "90 min for 40 move + 30 min with an increment of 30 sec starting move 1"]
[WhiteFideId "1701967"]
[BlackFideId "1701193"]
[WhiteElo "2160"]
[BlackElo "2057"]

1. d4 {[%clk 01:30:56]} {[%emt 00:00:04]} g6 {[%clk 01:30:40]} {[%emt
00:00:20]} 2. c4 {[%clk 01:31:15]} {[%emt 00:00:11]} Bg7 {[%clk 01:30:51]}
{[%emt 00:00:19]} 3. Nc3 {[%clk 01:31:22]} {[%emt 00:00:22]} Nf6 {[%clk
01:30:57]} {[%emt 00:00:25]} 4. e4 {[%clk 01:31:38]} {[%emt 00:00:14]} d6
{[%clk 01:31:17]} {[%emt 00:00:10]} 5. f4 {[%clk 01:31:17]} {[%emt 00:00:50]}
O-O {[%clk 01:31:00]} {[%emt 00:00:47]} 6. Nf3 {[%clk 01:31:18]} {[%emt
00:00:29]} c5 {[%clk 01:29:59]} {[%emt 00:01:32]} 7. d5 {[%clk 01:31:03]}
{[%emt 00:00:45]} e6 {[%clk 01:28:11]} {[%emt 00:02:18]} 8. dxe6 {[%clk
01:31:08]} {[%emt 00:00:24]} Bxe6 {[%clk 01:27:15]} {[%emt 00:01:27]} 9. Bd3
{[%clk 01:31:24]} {[%emt 00:00:14]} Nc6 {[%clk 01:25:51]} {[%emt 00:01:55]} 10.
O-O {[%clk 01:31:24]} {[%emt 00:00:29]} Na5 {[%clk 01:20:53]} {[%emt 00:05:28]}
11. Qe2 {[%clk 01:29:30]} {[%emt 00:02:23]} Re8 {[%clk 01:17:02]} {[%emt
00:04:21]} 12. Bd2 {[%clk 01:27:55]} {[%emt 00:02:06]} a6 {[%clk 01:07:49]}
{[%emt 00:09:43]} 13. b3 {[%clk 00:57:27]} {[%emt 00:30:57]} Rb8 {[%clk
01:03:36]} {[%emt 00:04:43]} 14. Rae1 {[%clk 00:51:35]} {[%emt 00:06:22]} Bd7
{[%clk 00:54:27]} {[%emt 00:09:38]} 15. Qf2 {[%clk 00:34:36]} {[%emt 00:17:30]}
Nc6 {[%clk 00:41:19]} {[%emt 00:13:39]} 16. Qh4 {[%clk 00:32:06]} {[%emt
00:02:59]} Nd4 {[%clk 00:36:37]} {[%emt 00:05:12]} 17. Nxd4 {[%clk 00:12:50]}
{[%emt 00:19:46]} cxd4 {[%clk 00:36:55]} {[%emt 00:00:12]} 18. Nd5 {[%clk
00:12:43]} {[%emt 00:00:38]} Nxd5 {[%clk 00:31:24]} {[%emt 00:06:00]} 19. Qxd8
{[%clk 00:12:59]} {[%emt 00:00:14]} Rbxd8 {[%clk 00:31:44]} 20. exd5 {[%clk
00:12:02]} {[%emt 00:01:38]} Bf5 {[%clk 00:31:16]} {[%emt 00:00:58]} 21. Bxf5
{[%clk 00:11:00]} {[%emt 00:01:31]} gxf5 {[%clk 00:31:38]} {[%emt 00:00:07]} 22.
Rxe8+ {[%clk 00:05:37]} {[%emt 00:05:54]} Rxe8 {[%clk 00:31:59]} {[%emt
00:00:09]} 23. Re1 {[%clk 00:05:53]} {[%emt 00:00:13]} Rxe1+ {[%clk 00:22:34]}
{[%emt 00:09:56]} 24. Bxe1 {[%clk 00:06:17]} {[%emt 00:00:05]} d3 {[%clk
00:22:28]} {[%emt 00:00:37]} 25. Bb4 {[%clk 00:01:31]} {[%emt 00:05:16]} h5
{[%clk 00:10:56]} {[%emt 00:12:02]} 26. Kf1 {[%clk 00:01:20]} {[%emt 00:00:41]}
Bf8 {[%clk 00:10:22]} {[%emt 00:01:04]} 27. Ke1 {[%clk 00:01:08]} {[%emt
00:00:43]} Be7 {[%clk 00:10:39]} {[%emt 00:00:12]} 28. Kd2 {[%clk 00:01:15]}
{[%emt 00:00:24]} Kf8 {[%clk 00:10:52]} {[%emt 00:00:16]} 29. Kxd3 {[%clk
00:01:31]} {[%emt 00:00:14]} Ke8 {[%clk 00:11:12]} {[%emt 00:00:10]} 30. Ba5
{[%clk 00:00:48]} {[%emt 00:01:14]} Kd7 {[%clk 00:11:25]} {[%emt 00:00:16]} 31.
Bb6 {[%clk 00:01:08]} {[%emt 00:00:09]} Bf6 {[%clk 00:10:27]} {[%emt 00:01:29]}
32. Bd4 {[%clk 00:01:01]} {[%emt 00:00:38]} Bh4 {[%clk 00:10:07]} {[%emt
00:00:50]} 33. Bb6 {[%clk 00:01:05]} {[%emt 00:00:26]} Bf6 {[%clk 00:10:23]}
{[%emt 00:00:14]} 34. Ke3 {[%clk 00:01:18]} {[%emt 00:00:17]} Bh4 {[%clk
00:09:47]} {[%emt 00:01:06]} 35. Ke2 {[%clk 00:01:26]} {[%emt 00:00:22]} Bf6
{[%clk 00:09:53]} {[%emt 00:00:24]} 36. Kf3 {[%clk 00:01:33]} {[%emt 00:00:23]}
Bh4 {[%clk 00:09:55]} {[%emt 00:00:27]} 37. Bd4 {[%clk 00:00:54]} {[%emt
00:01:09]} Kc7 {[%clk 00:09:24]} {[%emt 00:01:02]} 38. Be3 {[%clk 00:00:47]}
{[%emt 00:00:37]} Kd7 {[%clk 00:09:28]} {[%emt 00:00:26]} 39. Bf2 {[%clk
00:00:44]} {[%emt 00:00:33]} Bf6 {[%clk 00:09:42]} {[%emt 00:00:17]} 40. Kg3
{[%clk 00:00:44]} {[%emt 00:00:29]} Kc7 {[%clk 00:08:36]} {[%emt 00:01:38]} 41.
Kh3 {[%clk 00:00:38]} {[%emt 00:00:35]} Kd7 {[%clk 00:08:38]} {[%emt 00:00:28]}
42. Bh4 {[%clk 00:11:28]} {[%emt 00:19:40]} Bc3 {[%clk 00:38:51]} {[%emt
00:00:16]} 43. Bg5 {[%clk 00:11:06]} {[%emt 00:00:52]} Be1 {[%clk 00:37:43]}
{[%emt 00:01:38]} 44. Bf6 {[%clk 00:09:26]} {[%emt 00:02:09]} Bf2 {[%clk
00:37:07]} {[%emt 00:01:07]} 45. g3 {[%clk 00:08:37]} {[%emt 00:01:19]} Bg1
{[%clk 00:37:06]} {[%emt 00:00:30]} 46. Kh4 {[%clk 00:08:18]} {[%emt 00:00:50]}
Bxh2 {[%clk 00:37:15]} {[%emt 00:00:21]} 47. Bd4 {[%clk 00:08:37]} {[%emt
00:00:10]} 1-0

[Event "Masterklassen 2025"]
[Site "Uppsala, Sweden"]
[Date "2025.06.30"]
[Round "3.11"]
[White "Dingertz, Erik"]
[Black "Stanley, Mikael"]
[Result "1-0"]
[TimeControl "90 min for 40 move + 30 min with an increment of 30 sec starting move 1"]
[WhiteFideId "1741578"]
[BlackFideId "1703730"]
[WhiteElo "2121"]
[BlackElo "2150"]

1. d4 {[%clk 01:30:56]} {[%emt 00:00:04]} Nf6 {[%clk 01:30:53]} {[%emt
00:00:07]} 2. c4 {[%clk 01:31:22]} {[%emt 00:00:04]} c6 {[%clk 01:30:47]}
{[%emt 00:00:36]} 3. Nf3 {[%clk 01:31:43]} {[%emt 00:00:09]} d5 {[%clk
01:30:58]} {[%emt 00:00:19]} 4. g3 {[%clk 01:32:03]} {[%emt 00:00:10]} Bf5
{[%clk 01:28:45]} {[%emt 00:02:44]} 5. Bg2 {[%clk 01:32:25]} {[%emt 00:00:07]}
e6 {[%clk 01:28:03]} {[%emt 00:01:13]} 6. O-O {[%clk 01:32:49]} {[%emt
00:00:05]} Bd6 {[%clk 01:27:20]} {[%emt 00:01:14]} 7. Qb3 {[%clk 01:32:22]}
{[%emt 00:00:57]} b6 {[%clk 01:20:57]} {[%emt 00:06:52]} 8. Nc3 {[%clk
01:31:18]} {[%emt 00:01:34]} Nbd7 {[%clk 01:16:03]} {[%emt 00:05:24]} 9. Nh4
{[%clk 01:30:12]} {[%emt 00:01:36]} Bg4 {[%clk 01:10:46]} {[%emt 00:05:47]} 10.
f3 {[%clk 01:20:41]} {[%emt 00:10:01]} Bh5 {[%clk 01:10:39]} {[%emt 00:00:37]}
11. e4 {[%clk 01:16:02]} {[%emt 00:05:09]} dxe4 {[%clk 01:08:21]} {[%emt
00:02:49]} 12. fxe4 {[%clk 01:15:36]} {[%emt 00:00:55]} Ng4 {[%clk 00:53:33]}
{[%emt 00:15:19]} 13. e5 {[%clk 01:13:11]} {[%emt 00:02:54]} Be7 {[%clk
00:53:15]} {[%emt 00:00:48]} 14. Nf3 {[%clk 01:13:30]} {[%emt 00:00:11]} c5
{[%clk 00:51:30]} {[%emt 00:02:15]} 15. d5 {[%clk 01:12:41]} {[%emt 00:01:18]}
Ndxe5 {[%clk 00:49:27]} {[%emt 00:02:33]} 16. Nxe5 {[%clk 01:13:04]} {[%emt
00:00:08]} Nxe5 {[%clk 00:49:55]} {[%emt 00:00:02]} 17. Bf4 {[%clk 01:12:55]}
{[%emt 00:00:38]} Nd3 {[%clk 00:33:47]} {[%emt 00:16:38]} 18. Qa4+ {[%clk
01:04:48]} {[%emt 00:08:36]} Kf8 {[%clk 00:31:10]} {[%emt 00:03:08]} 19. dxe6
{[%clk 00:44:11]} {[%emt 00:21:07]} Qd4+ {[%clk 00:30:54]} {[%emt 00:00:47]} 20.
Kh1 {[%clk 00:44:37]} {[%emt 00:00:03]} Rd8 {[%clk 00:27:54]} {[%emt 00:03:30]}
21. Nd5 {[%clk 00:45:04]} {[%emt 00:00:03]} Nf2+ {[%clk 00:23:17]} {[%emt
00:05:08]} 22. Rxf2 {[%clk 00:45:26]} {[%emt 00:00:08]} Qxf2 {[%clk 00:23:45]}
{[%emt 00:00:02]} 23. Qxa7 {[%clk 00:45:11]} {[%emt 00:00:45]} Re8 {[%clk
00:14:33]} {[%emt 00:09:42]} 24. Nxe7 {[%clk 00:44:27]} {[%emt 00:01:14]} Bf3
{[%clk 00:14:29]} {[%emt 00:00:34]} 25. Ng6+ {[%clk 00:44:53]} {[%emt
00:00:04]} 1-0

[Event "Masterklassen 2025"]
[Site "Uppsala, Sweden"]
[Date "2025.06.30"]
[Round "3.12"]
[White "Mashhadi, Peyman"]
[Black "Sergelenbaatar, Khaschuluu"]
[Result "1-0"]
[TimeControl "90 min for 40 move + 30 min with an increment of 30 sec starting move 1"]
[WhiteFideId "1768581"]
[BlackFideId "4920929"]
[WhiteElo "2132"]
[BlackElo "1996"]

1. d4 {[%clk 01:30:52]} {[%emt 00:00:06]} d5 {[%clk 01:11:36]} {[%emt
00:19:26]} 2. c4 {[%clk 01:30:54]} {[%emt 00:00:27]} e6 {[%clk 01:11:25]}
{[%emt 00:00:29]} 3. Nf3 {[%clk 01:31:17]} {[%emt 00:00:19]} c6 {[%clk
01:11:48]} {[%emt 00:00:09]} 4. g3 {[%clk 01:31:36]} {[%emt 00:00:07]} dxc4
{[%clk 01:12:11]} {[%emt 00:00:10]} 5. Bg2 {[%clk 01:31:54]} {[%emt 00:00:11]}
b5 {[%clk 01:12:32]} {[%emt 00:00:10]} 6. O-O {[%clk 01:31:12]} {[%emt
00:01:12]} Bb7 {[%clk 01:12:51]} {[%emt 00:00:12]} 7. a4 {[%clk 01:28:21]}
{[%emt 00:03:21]} Nf6 {[%clk 01:11:25]} {[%emt 00:01:55]} 8. b3 {[%clk
01:27:28]} {[%emt 00:01:22]} cxb3 {[%clk 01:11:26]} {[%emt 00:00:30]} 9. Qxb3
{[%clk 01:24:34]} {[%emt 00:03:24]} a6 {[%clk 01:09:35]} {[%emt 00:02:20]} 10.
Ne5 {[%clk 01:21:08]} {[%emt 00:03:56]} Qxd4 {[%clk 01:09:54]} {[%emt
00:00:12]} 11. Bb2 {[%clk 01:21:09]} {[%emt 00:00:29]} Qb4 {[%clk 01:10:19]}
{[%emt 00:00:06]} 12. Qc2 {[%clk 01:20:35]} {[%emt 00:01:02]} Qc5 {[%clk
01:09:22]} {[%emt 00:01:29]} 13. Qd3 {[%clk 01:18:55]} {[%emt 00:02:09]} Qb6
{[%clk 00:54:06]} {[%emt 00:15:46]} 14. g4 {[%clk 00:46:31]} {[%emt 00:32:53]}
Be7 {[%clk 00:44:20]} {[%emt 00:10:15]} 15. g5 {[%clk 00:45:25]} {[%emt
00:01:38]} Nfd7 {[%clk 00:22:54]} {[%emt 00:21:55]} 16. Nxd7 {[%clk 00:38:46]}
{[%emt 00:07:09]} Nxd7 {[%clk 00:23:18]} {[%emt 00:00:05]} 17. Bxg7 {[%clk
00:38:25]} {[%emt 00:00:51]} Rg8 {[%clk 00:23:27]} {[%emt 00:00:22]} 18. Qxh7
{[%clk 00:38:21]} {[%emt 00:00:34]} O-O-O {[%clk 00:23:41]} {[%emt 00:00:16]}
19. h4 {[%clk 00:36:12]} {[%emt 00:02:39]} f6 {[%clk 00:18:39]} {[%emt
00:05:31]} 20. Nd2 {[%clk 00:28:28]} {[%emt 00:08:15]} fxg5 {[%clk 00:15:59]}
{[%emt 00:03:10]} 21. hxg5 {[%clk 00:28:40]} {[%emt 00:00:18]} Bxg5 {[%clk
00:14:50]} {[%emt 00:01:38]} 22. Ne4 {[%clk 00:28:54]} {[%emt 00:00:15]} Be7
{[%clk 00:12:48]} {[%emt 00:02:33]} 23. Bc3 {[%clk 00:20:55]} {[%emt 00:08:30]}
Bc5 {[%clk 00:03:07]} {[%emt 00:10:12]} 24. Rab1 {[%clk 00:15:27]} {[%emt
00:05:57]} a5 {[%clk 00:01:34]} {[%emt 00:02:03]} 25. Qh2 {[%clk 00:10:16]}
{[%emt 00:05:40]} b4 {[%clk 00:00:55]} {[%emt 00:01:10]} 26. Rfd1 {[%clk
00:09:11]} {[%emt 00:01:35]} Bxf2+ {[%clk 00:00:31]} {[%emt 00:00:54]} 27. Nxf2
{[%clk 00:05:48]} {[%emt 00:03:52]} Rdf8 {[%clk 00:00:58]} {[%emt 00:00:04]} 28.
Qh4 {[%clk 00:05:57]} {[%emt 00:00:21]} Qe3 {[%clk 00:00:35]} {[%emt 00:00:53]}
29. Bd4 {[%clk 00:04:58]} {[%emt 00:01:30]} Qxe2 {[%clk 00:00:55]} {[%emt
00:00:09]} 30. Re1 {[%clk 00:02:31]} {[%emt 00:02:56]} Qf3 {[%clk 00:01:17]}
{[%emt 00:00:09]} 31. Qh3 {[%clk 00:02:44]} {[%emt 00:00:17]} Qxh3 {[%clk
00:00:47]} {[%emt 00:01:01]} 32. Nxh3 {[%clk 00:03:05]} {[%emt 00:00:09]} c5
{[%clk 00:01:14]} {[%emt 00:00:03]} 33. Rb2 {[%clk 00:01:05]} {[%emt 00:02:29]}
cxd4 {[%clk 00:00:55]} {[%emt 00:00:50]} 34. Rxe6 {[%clk 00:01:11]} {[%emt
00:00:23]} Rxg2+ {[%clk 00:00:31]} {[%emt 00:00:54]} 35. Rxg2 {[%clk 00:01:37]}
{[%emt 00:00:04]} Bxg2 {[%clk 00:00:57]} {[%emt 00:00:04]} 36. Kxg2 {[%clk
00:01:57]} {[%emt 00:00:10]} Kc7 {[%clk 00:00:56]} {[%emt 00:00:31]} 37. Ra6
{[%clk 00:01:46]} {[%emt 00:00:41]} d3 {[%clk 00:00:38]} {[%emt 00:00:48]} 38.
Rxa5 {[%clk 00:02:03]} {[%emt 00:00:14]} Kc6 {[%clk 00:30:00]} {[%emt
00:00:36]} 1-0

[Event "Masterklassen 2025"]
[Site "Uppsala, Sweden"]
[Date "2025.06.30"]
[Round "3.13"]
[White "Johansson, William"]
[Black "Eklund, Joel"]
[Result "0-1"]
[TimeControl "90 min for 40 move + 30 min with an increment of 30 sec starting move 1"]
[WhiteFideId "1744070"]
[BlackFideId "1705288"]
[WhiteElo "2026"]
[BlackElo "2194"]

1. e4 {[%clk 01:30:55]} {[%emt 00:00:05]} c6 {[%clk 01:30:47]} {[%emt
00:00:14]} 2. Nf3 {[%clk 01:30:30]} {[%emt 00:00:55]} d5 {[%clk 01:31:10]}
{[%emt 00:00:07]} 3. d3 {[%clk 01:30:45]} {[%emt 00:00:15]} g6 {[%clk
01:27:15]} {[%emt 00:04:25]} 4. exd5 {[%clk 01:30:37]} {[%emt 00:00:38]} cxd5
{[%clk 01:27:23]} {[%emt 00:00:22]} 5. d4 {[%clk 01:31:02]} {[%emt 00:00:05]}
Nc6 {[%clk 01:26:21]} {[%emt 00:01:32]} 6. Bd3 {[%clk 01:31:14]} {[%emt
00:00:18]} Nf6 {[%clk 01:24:45]} {[%emt 00:02:06]} 7. c3 {[%clk 01:30:52]}
{[%emt 00:00:52]} Qc7 {[%clk 01:21:13]} {[%emt 00:04:01]} 8. Bg5 {[%clk
01:29:09]} {[%emt 00:02:13]} h6 {[%clk 01:16:22]} {[%emt 00:05:21]} 9. Bh4
{[%clk 01:20:19]} {[%emt 00:09:21]} Nh5 {[%clk 01:14:55]} {[%emt 00:01:57]} 10.
O-O {[%clk 01:17:45]} {[%emt 00:03:03]} g5 {[%clk 01:02:46]} {[%emt 00:12:40]}
11. Bg3 {[%clk 01:17:47]} {[%emt 00:00:27]} Nxg3 {[%clk 01:03:10]} {[%emt
00:00:06]} 12. fxg3 {[%clk 01:17:27]} {[%emt 00:00:50]} Bg4 {[%clk 01:01:22]}
{[%emt 00:02:18]} 13. Qe1 {[%clk 01:14:37]} {[%emt 00:03:20]} Bg7 {[%clk
00:59:29]} {[%emt 00:02:23]} 14. Qf2 {[%clk 01:12:21]} {[%emt 00:02:46]} O-O-O
{[%clk 00:56:41]} {[%emt 00:03:19]} 15. b4 {[%clk 01:11:31]} {[%emt 00:01:20]}
Qb6 {[%clk 00:46:05]} {[%emt 00:11:05]} 16. Nbd2 {[%clk 01:07:34]} {[%emt
00:04:26]} e5 {[%clk 00:39:12]} {[%emt 00:07:24]} 17. b5 {[%clk 01:02:43]}
{[%emt 00:05:21]} Nb4 {[%clk 00:36:47]} {[%emt 00:02:55]} 18. cxb4 {[%clk
00:56:02]} {[%emt 00:07:11]} e4 {[%clk 00:37:02]} {[%emt 00:00:15]} 19. Rac1+
{[%clk 00:55:09]} {[%emt 00:01:23]} Kb8 {[%clk 00:36:56]} {[%emt 00:00:37]} 20.
Be2 {[%clk 00:52:59]} {[%emt 00:02:39]} exf3 {[%clk 00:26:47]} {[%emt
00:10:39]} 21. Nxf3 {[%clk 00:53:14]} {[%emt 00:00:15]} Rhe8 {[%clk 00:25:55]}
{[%emt 00:01:22]} 22. Rfd1 {[%clk 00:46:58]} {[%emt 00:06:46]} Re4 {[%clk
00:19:56]} {[%emt 00:06:29]} 23. Rc5 {[%clk 00:45:26]} {[%emt 00:02:01]} Qd6
{[%clk 00:15:44]} {[%emt 00:04:43]} 24. h3 {[%clk 00:42:50]} {[%emt 00:03:06]}
Rde8 {[%clk 00:14:37]} {[%emt 00:01:37]} 25. Rc2 {[%clk 00:39:59]} {[%emt
00:03:21]} Bh5 {[%clk 00:10:01]} {[%emt 00:05:06]} 26. g4 {[%clk 00:36:01]}
{[%emt 00:04:27]} Bg6 {[%clk 00:10:14]} {[%emt 00:00:17]} 27. Bd3 {[%clk
00:33:51]} {[%emt 00:02:41]} Re3 {[%clk 00:03:49]} {[%emt 00:06:55]} 28. Bxg6
{[%clk 00:33:28]} {[%emt 00:00:53]} fxg6 {[%clk 00:04:18]} 29. Rdc1 {[%clk
00:20:59]} {[%emt 00:12:59]} Qf4 {[%clk 00:03:56]} {[%emt 00:00:52]} 30. Kh1
{[%clk 00:15:53]} {[%emt 00:05:36]} h5 {[%clk 00:03:39]} {[%emt 00:00:47]} 31.
Rc7 {[%clk 00:05:52]} {[%emt 00:10:31]} Bxd4 {[%clk 00:03:16]} {[%emt
00:00:54]} 32. gxh5 {[%clk 00:00:46]} {[%emt 00:05:35]} Bb6 {[%clk 00:02:09]}
{[%emt 00:01:37]} 33. Rg7 {[%clk 00:00:36]} {[%emt 00:00:40]} Rxf3 {[%clk
00:01:37]} {[%emt 00:01:02]} 34. Qxf3 {[%clk 00:00:34]} {[%emt 00:00:32]} Qxc1+
{[%clk 00:02:06]} {[%emt 00:00:02]} 35. Kh2 {[%clk 00:00:55]} {[%emt 00:00:09]}
Bg1+ {[%clk 00:01:22]} {[%emt 00:01:14]} 36. Kh1 {[%clk 00:01:01]} {[%emt
00:00:24]} Bf2+ {[%clk 00:01:31]} {[%emt 00:00:20]} 0-1